fUST/lending_fUST_20260627
["ID","MTS","AMOUNT","RATE_DAILY","PERIOD"]
[426502702,1782489788000,160.0,0.00029155,30]
[426502703,1782489810000,200.0,0.00029586,120]
[426502704,1782489922000,500.0,0.00029155,30]
[426502705,1782490039000,417.15472785,0.00029155,30]
[426502706,1782490231000,-1746.02785355,0.00028835,2]
[426502731,1782490233000,-3000.0,0.00029126,7]
[426502733,1782490233000,-92.05957983,0.0003,7]
[426502732,1782490233000,-300.0,0.00029154,2]
[426502730,1782490233000,-5341.06668662,0.00029126,2]
[426502768,1782490238000,-104.09015289,0.0003,7]
[426502770,1782490238000,-646.62271322,0.00030148,7]
[426502772,1782490238000,-196.14973272,0.000306,7]
[426502771,1782490238000,-153.0,0.000306,7]
[426502773,1782490238000,-196.14973272,0.000315,7]
[426502774,1782490238000,-228.06793122,0.000324,7]
[426502775,1782490238000,-196.14973272,0.000324,7]
[426502776,1782490238000,-1017.7639226,0.00033175,120]
[426502915,1782490241000,-118.09118926,0.000332,117]
[426502917,1782490241000,-500.0,0.00033246,7]
[426502911,1782490241000,-1266.1992506,0.00033175,120]
[426502920,1782490241000,-141.90881074,0.00033246,7]
[426502913,1782490241000,-156.08646368,0.000332,117]
[426502938,1782490241000,-466.30899348,0.00033246,7]
[426502946,1782490241000,-32.44730544,0.00033246,30]
[426502943,1782490241000,-500.0,0.00033246,7]
[426502941,1782490241000,-194.82242241,0.00033246,7]
[426502940,1782490241000,-298.82278935,0.00033246,7]
[426502944,1782490241000,-500.0,0.00033246,7]
[426502942,1782490241000,-500.0,0.00033246,7]
[426502939,1782490241000,-500.0,0.00033246,7]
[426503284,1782490243000,-165.2191923,0.00033969,2]
[426503230,1782490243000,-528.31945527,0.00033246,30]
[426503233,1782490243000,-4.48890065,0.00033247,15]
[426503235,1782490243000,-427.77401337,0.00033247,15]
[426503275,1782490243000,-4072.92557691,0.00033247,15]
[426503277,1782490243000,-6020.53107396,0.00033247,15]
[426503279,1782490243000,-263.00538661,0.00033247,15]
[426503281,1782490243000,-196.14973274,0.000336,7]
[426503291,1782490243000,-168.0,0.00038,2]
[426503294,1782490243000,-4344.1823049,0.000385,7]
[426503306,1782490243000,-166.03924511,0.00038707,15]
[426503296,1782490243000,-500.0,0.00038537,120]
[426503288,1782490243000,-153.0,0.00036,2]
[426503290,1782490243000,-153.0,0.00037,2]
[426503300,1782490243000,-337.01331053,0.00038537,120]
[426503302,1782490243000,-594.46075332,0.00038611,10]
[426503308,1782490243000,-1437.67366165,0.00038707,15]
[426503298,1782490243000,-182.78618212,0.00038537,120]
[426503304,1782490243000,-206.379,0.000387,52]
[426503312,1782490243000,-979.36664777,0.00038707,15]
[426503310,1782490243000,-1437.67366165,0.00038707,15]
[426503286,1782490243000,-1000.0,0.00034327,30]
[426503677,1782490246000,-1437.67366165,0.00038707,15]
[426503685,1782490246000,-1437.67366165,0.00038707,15]
[426503699,1782490246000,-1437.67366165,0.00038707,15]
[426503679,1782490246000,-1437.67366165,0.00038707,15]
[426503689,1782490246000,-1437.67366165,0.00038707,15]
[426503675,1782490246000,-1437.67366165,0.00038707,15]
[426503681,1782490246000,-1437.67366165,0.00038707,15]
[426503683,1782490246000,-1437.67366165,0.00038707,15]
[426503693,1782490246000,-1437.67366165,0.00038707,15]
[426503673,1782490246000,-458.30701388,0.00038707,15]
[426503701,1782490246000,-1437.67366165,0.00038707,15]
[426503697,1782490246000,-1437.67366165,0.00038707,15]
[426503691,1782490246000,-1437.67366165,0.00038707,15]
[426503726,1782490246000,-238.91439959,0.00038708,120]
[426503687,1782490246000,-1437.67366165,0.00038707,15]
[426503695,1782490246000,-1437.67366165,0.00038707,15]
[426503713,1782490246000,-1000.0,0.00038708,120]
[426503717,1782490246000,-1000.0,0.00038708,120]
[426503719,1782490246000,-1000.0,0.00038708,120]
[426503722,1782490246000,-1000.0,0.00038708,120]
[426503724,1782490246000,-1000.0,0.00038708,120]
[426503716,1782490246000,-1000.0,0.00038708,120]
[426503712,1782490246000,-1000.0,0.00038708,120]
[426503704,1782490246000,-1437.67366165,0.00038707,15]
[426503707,1782490246000,-1000.0,0.00038708,120]
[426503706,1782490246000,-1437.67366165,0.00038707,15]
[426503710,1782490246000,-1000.0,0.00038708,120]
[426503762,1782490247000,-151.0,0.00038709,120]
[426503785,1782490247000,-102.08819701,0.0003871,120]
[426503798,1782490247000,-206.03540294,0.0003871,120]
[426503795,1782490247000,-206.03540294,0.0003871,120]
[426503793,1782490247000,-206.03540294,0.0003871,120]
[426503791,1782490247000,-206.03540294,0.0003871,120]
[426503768,1782490247000,-206.03540294,0.0003871,120]
[426503772,1782490247000,-103.94720593,0.0003871,120]
[426503764,1782490247000,-167.073016,0.00038709,120]
[426503766,1782490247000,-151.286153,0.00038709,120]
[426503754,1782490247000,-641.0711977,0.00038708,120]
[426503750,1782490247000,-1000.0,0.00038708,120]
[426503748,1782490247000,-1000.0,0.00038708,120]
[426503744,1782490247000,-1000.0,0.00038708,120]
[426503756,1782490247000,-151.0,0.00038708,120]
[426503746,1782490247000,-1000.0,0.00038708,120]
[426503758,1782490247000,-151.0,0.00038708,120]
[426503752,1782490247000,-1000.0,0.00038708,120]
[426503742,1782490247000,-761.08560041,0.00038708,120]
[426503789,1782490247000,-206.03540294,0.0003871,120]
[426503760,1782490247000,-204.207685,0.00038708,120]
[426503787,1782490247000,-206.03540294,0.0003871,120]
[426503812,1782490247000,-157.96047558,0.0003871,120]
[426503802,1782490247000,-157.96047558,0.0003871,120]
[426503800,1782490247000,-206.03540294,0.0003871,120]
[426503835,1782490247000,-206.508656,0.0003871,120]
[426503831,1782490247000,-206.508656,0.0003871,120]
[426503833,1782490247000,-206.508656,0.0003871,120]
[426503837,1782490247000,-206.508656,0.0003871,120]
[426503842,1782490247000,-151.0,0.0003871,120]
[426503829,1782490247000,-151.0,0.0003871,120]
[426503840,1782490247000,-151.0,0.0003871,120]
[426503844,1782490247000,-330492.54014307,0.00038711,120]
[426503823,1782490247000,-151.0,0.0003871,120]
[426503846,1782490247000,-315295.23917877,0.00038711,120]
[426503827,1782490247000,-151.0,0.0003871,120]
[426503825,1782490247000,-151.0,0.0003871,120]
[426503819,1782490247000,-157.96047558,0.0003871,120]
[426503808,1782490247000,-157.96047558,0.0003871,120]
[426503816,1782490247000,-157.96047558,0.0003871,120]
[426503806,1782490247000,-157.96047558,0.0003871,120]
[426503814,1782490247000,-157.96047558,0.0003871,120]
[426503852,1782490247000,-3174.62732789,0.00038711,120]
[426503804,1782490247000,-157.96047558,0.0003871,120]
[426503810,1782490247000,-157.96047558,0.0003871,120]
[426503820,1782490247000,-157.96047557,0.0003871,120]
[426504822,1782490401000,0.0098006,0.00029245,2]
[426504821,1782490401000,6802.81,0.00029245,2]
[426504823,1782490481000,-5000.0,0.00028953,2]
[426504824,1782490486000,898.1090061,0.00029245,2]
[426504825,1782490487000,5788.56063473,0.0002,120]
[426504826,1782490529000,-1346.69907745,0.00029245,2]
[426504827,1782490541000,904.6911933,0.000291,2]
[426504830,1782490557000,-160.0,0.00029245,2]
[426504829,1782490557000,-1.8519157,0.000291,2]
[426504831,1782490624000,-5456.10112195,0.00029245,2]
[426504834,1782490624000,-518.20445619,0.00033246,30]
[426504833,1782490624000,-1346.69907745,0.00033,2]
[426504836,1782490624000,-810.94625171,0.00036786,2]
[426504835,1782490624000,-160.58474193,0.00036,2]
[426504839,1782490624000,-151.5,0.00038437,60]
[426504837,1782490624000,-412.59224095,0.00036786,2]
[426504840,1782490624000,-151.5,0.00038437,60]
[426504838,1782490624000,-1000.0,0.00037062,30]
[426504832,1782490624000,-450.52569539,0.00032551,2]
[426504844,1782490624000,-234.55804282,0.00038437,60]
[426504842,1782490624000,-151.5,0.00038437,60]
[426504846,1782490624000,-1116.228274,0.00038506,2]
[426504845,1782490624000,-1000.0,0.00038442,2]
[426504843,1782490624000,-151.5,0.00038437,60]
[426504847,1782490624000,-1116.228274,0.00038506,2]
[426504848,1782490624000,-1116.228274,0.00038506,2]
[426504850,1782490624000,-387.37527561,0.00038507,2]
[426504849,1782490624000,-1116.228274,0.00038507,2]
[426504841,1782490624000,-151.5,0.00038437,60]
[426504851,1782490649000,-6000.0,0.00034606,2]
[426504852,1782490670000,-5999.99,0.00030606,2]
[426504853,1782490752000,-274.4696311,0.00034605,7]
[426504894,1782491061000,586512.51,0.0003013,30]
[426504903,1782491285000,500.0,0.00028908,30]
[426504934,1782491433000,-446.57472368,0.00028908,2]
[426504936,1782491433000,-604.0,0.000292,2]
[426504930,1782491433000,-689.78558042,0.00028,2]
[426504943,1782491433000,-5485.64455612,0.00034606,2]
[426504933,1782491433000,-70.21441958,0.00028,2]
[426504947,1782491433000,-727.96818046,0.00034606,2]
[426504939,1782491433000,-163.0,0.00031776,120]
[426504941,1782491433000,-177.21,0.00033486,2]
[426504945,1782491433000,-1707.3525378,0.00034606,2]
[426505019,1782491437000,504.59,0.00029159,120]
[426505079,1782491438000,-196.282889,0.00036115,2]
[426505077,1782491438000,-463.14711539,0.00036007,2]
[426505082,1782491438000,-1000.0,0.00036465,30]
[426505084,1782491438000,-266.25632129,0.00038234,2]
[426505083,1782491438000,-187.7866764,0.00038234,2]
[426505073,1782491438000,-3079.02472562,0.00034606,2]
[426505075,1782491438000,-231.5735577,0.0003557,2]
[426505081,1782491438000,-196.282889,0.00036115,120]
[426505164,1782491440000,-151.5,0.00038334,60]
[426505166,1782491440000,-151.5,0.00038334,60]
[426505162,1782491440000,-151.5,0.00038334,60]
[426505168,1782491440000,-234.55804282,0.00038334,60]
[426505150,1782491440000,-500.0,0.00038334,60]
[426505144,1782491440000,-151.5,0.00038334,60]
[426505154,1782491440000,-500.0,0.00038334,60]
[426505158,1782491440000,-151.5,0.00038334,60]
[426505152,1782491440000,-197.97194916,0.00038334,60]
[426505148,1782491440000,-151.5,0.00038334,60]
[426505146,1782491440000,-500.0,0.00038334,60]
[426505142,1782491440000,-500.0,0.00038334,60]
[426505140,1782491440000,-2521.64145011,0.00038234,2]
[426505172,1782491440000,-500.0,0.00038406,2]
[426505156,1782491440000,-196.92584205,0.00038334,60]
[426505170,1782491440000,-187.7866764,0.00038406,2]
[426505160,1782491440000,-151.5,0.00038334,60]
[426505174,1782491440000,-194.52,0.00038496,3]
[426505182,1782491440000,-151.0,0.00038506,120]
[426505198,1782491440000,-165.206924,0.00038506,120]
[426505202,1782491440000,-258.887729,0.00038506,120]
[426505204,1782491440000,-337.831366,0.00038506,120]
[426505200,1782491440000,-151.0,0.00038506,120]
[426505196,1782491440000,-151.0,0.00038506,120]
[426505194,1782491440000,-165.206924,0.00038506,120]
[426505192,1782491440000,-165.206924,0.00038506,120]
[426505190,1782491440000,-165.206924,0.00038506,120]
[426505188,1782491440000,-168.706227,0.00038506,120]
[426505212,1782491440000,-258.887729,0.00038506,120]
[426505186,1782491440000,-151.0,0.00038506,120]
[426505178,1782491440000,-151.0,0.00038506,120]
[426505176,1782491440000,-583.56,0.00038496,3]
[426505180,1782491440000,-151.0,0.00038506,120]
[426505184,1782491440000,-151.0,0.00038506,120]
[426505213,1782491441000,-337.831366,0.00038506,120]
[426505214,1782491441000,-258.887729,0.00038506,120]
[426505217,1782491441000,-337.831366,0.00038506,120]
[426505216,1782491441000,-258.887729,0.00038506,120]
[426505219,1782491441000,-74.41897426,0.00038506,120]
[426505215,1782491441000,-337.831366,0.00038506,120]
[426505517,1782491443000,-151.0,0.00038506,120]
[426505511,1782491443000,-282.81309574,0.00038506,120]
[426505524,1782491443000,-357.23207,0.00038506,120]
[426505528,1782491443000,-342.826777,0.00038506,120]
[426505526,1782491443000,-151.0,0.00038506,120]
[426505520,1782491443000,-357.23207,0.00038506,120]
[426505522,1782491443000,-151.0,0.00038506,120]
[426505515,1782491443000,-357.23207,0.00038506,120]
[426505532,1782491443000,-342.826777,0.00038506,120]
[426505513,1782491443000,-151.0,0.00038506,120]
[426505541,1782491443000,-165.33425,0.00038506,120]
[426505535,1782491443000,-342.826777,0.00038506,120]
[426505537,1782491443000,-342.826777,0.00038506,120]
[426505539,1782491443000,-165.33425,0.00038506,120]
[426505549,1782491443000,-151.0,0.00038506,120]
[426505551,1782491443000,-151.0,0.00038506,120]
[426505545,1782491443000,-165.33425,0.00038506,120]
[426505547,1782491443000,-151.0,0.00038506,120]
[426505553,1782491443000,-4686.65247794,0.00038506,120]
[426505543,1782491443000,-165.33425,0.00038506,120]
[426505555,1782491443000,-1620.70001649,0.00038506,120]
[426505531,1782491443000,-151.0,0.00038506,120]
[426506010,1782491447000,-641.21484292,0.00038356,120]
[426508599,1782491620000,160.0,0.00029159,30]
[426508600,1782491695000,160.0,0.00029159,30]
[426508601,1782491857000,160.0,0.00029159,30]
[426508602,1782491859000,417.15472785,0.00029159,30]
[426508637,1782492632000,-605.0,0.000292,2]
[426508634,1782492632000,-421.68194636,0.00028934,14]
[426508642,1782492632000,-155.0,0.00036,2]
[426508638,1782492632000,-68.0,0.00034978,2]
[426508641,1782492632000,-124.15,0.00034978,2]
[426508643,1782492632000,-168.0,0.00036,30]
[426508644,1782492632000,-1000.0,0.00036659,30]
[426508649,1782492632000,-168.0,0.00037397,30]
[426508647,1782492632000,-155.0,0.00037,2]
[426508645,1782492632000,-500.0,0.00036695,30]
[426508650,1782492632000,-312.93597144,0.00038,120]
[426508651,1782492632000,-285.94924944,0.00038,120]
[426508648,1782492632000,-231.37852056,0.00037385,15]
[426508646,1782492632000,-680.9524463,0.00036937,2]
[426508652,1782492632000,-438.23496928,0.00038,120]
[426508674,1782492638000,-513.00787107,0.00038,120]
[426508675,1782492638000,-709.39343656,0.00038,120]
[426508707,1782492643000,-413.78128082,0.00038,120]
[426508774,1782492647000,-358.78515708,0.00038356,120]
[426508771,1782492647000,-1116.228274,0.00038335,2]
[426508772,1782492647000,-1116.228274,0.00038343,2]
[426508773,1782492647000,-1116.228274,0.00038351,2]
[426508775,1782492647000,-1116.228274,0.00038359,2]
[426508777,1782492647000,-1116.228274,0.00038374,2]
[426508770,1782492647000,-155.0,0.00038,2]
[426508776,1782492647000,-1116.228274,0.00038367,2]
[426508778,1782492647000,-1116.228274,0.00038382,2]
[426508780,1782492647000,-1116.228274,0.00038398,2]
[426508781,1782492647000,-187.78667639,0.00038404,2]
[426508785,1782492647000,-618.09342283,0.00038435,2]
[426508783,1782492647000,-181.379,0.00038434,51]
[426508782,1782492647000,-1116.228274,0.00038406,2]
[426508779,1782492647000,-1116.228274,0.0003839,2]
[426508769,1782492647000,-385.55575264,0.00038,120]
[426508784,1782492647000,-2467.29458342,0.00038435,2]
[426508786,1782492682000,500.0,0.00028834,30]
[426508790,1782492928000,642.0,0.0003013,30]
[426508791,1782493044000,1824.0,0.00029158,30]
[426508792,1782493051000,712.36929826,7.6e-05,2]
[426508793,1782493058000,3251.84844815,0.00012,2]
[426508794,1782493061000,15308.4862269,0.000118,5]
[426508795,1782493590000,-156.0,0.00024059,2]
[426508798,1782493590000,-539.73679863,0.00024403,2]
[426508797,1782493590000,-804.63180249,0.00024159,2]
[426508796,1782493590000,-439.07675,0.00024059,18]
[426508800,1782493590000,-219.51643033,0.00028834,2]
[426508801,1782493590000,-240.35987896,0.00029411,7]
[426508802,1782493590000,-6673.10513421,0.0003,2]
[426508799,1782493590000,-572.59276827,0.0002465,2]
[426508803,1782493678000,417.15472785,0.00029099,30]
[426508804,1782493719000,159.024162,0.000108,2]
[426508873,1782493832000,-278.39758568,0.00037788,15]
[426508864,1782493832000,-155.0,0.00036,2]
[426508868,1782493832000,-1819.13704371,0.00037787,2]
[426508869,1782493832000,-125.45243533,0.00037787,2]
[426508867,1782493832000,-155.0,0.00037,2]
[426508865,1782493832000,-195.98719306,0.00036486,2]
[426508874,1782493832000,-221.60241432,0.00037788,15]
[426508862,1782493832000,-1000.0,0.00032052,30]
[426508863,1782493832000,-3052.58184822,0.00033247,15]
[426508861,1782493832000,-1330.3890264,0.0003,2]
[426508859,1782493832000,-425.73473048,0.00029403,2]
[426508860,1782493832000,-1644.45998943,0.00029403,2]
[426508866,1782493832000,-352.42417057,0.00036486,2]
[426508872,1782493832000,-147.58114704,0.00037788,15]
[426508885,1782493832000,-500.0,0.00037788,15]
[426508875,1782493832000,-120.31447571,0.00037788,15]
[426508871,1782493832000,-352.41885296,0.00037788,15]
[426508887,1782493832000,-440.40514118,0.00037788,15]
[426508883,1782493832000,-500.0,0.00037788,15]
[426508886,1782493832000,-500.0,0.00037788,15]
[426508884,1782493832000,-500.0,0.00037788,15]
[426508882,1782493832000,-499.84246859,0.00037788,15]
[426508881,1782493832000,-500.0,0.00037788,15]
[426508878,1782493832000,-500.0,0.00037788,15]
[426508879,1782493832000,-649.4450396,0.00037788,15]
[426508870,1782493832000,-225.5303689,0.00037788,15]
[426508876,1782493832000,-379.68552429,0.00037788,15]
[426508877,1782493832000,-500.0,0.00037788,15]
[426508880,1782493832000,-500.0,0.00037788,15]
[426508967,1782493838000,-2871.62944779,0.00037796,2]
[426508958,1782493838000,-59.59485882,0.00037788,15]
[426508966,1782493838000,-199.53400508,0.00037795,2]
[426508961,1782493838000,-500.0,0.00037788,15]
[426508964,1782493838000,-3542.5593782,0.00037789,2]
[426508969,1782493838000,-554.83003646,0.00037797,10]
[426508978,1782493838000,-1172.40937259,0.00037896,15]
[426508960,1782493838000,-500.0,0.00037788,15]
[426508982,1782493838000,-1172.40937259,0.00037896,15]
[426508980,1782493838000,-1172.40937259,0.00037896,15]
[426508972,1782493838000,-199.53400507,0.00037797,2]
[426508974,1782493838000,-173.08338594,0.00037896,2]
[426508976,1782493838000,-1172.40937259,0.00037896,15]
[426508988,1782493838000,-1172.40937259,0.00037896,15]
[426508984,1782493838000,-1172.40937259,0.00037896,15]
[426508986,1782493838000,-1172.40937259,0.00037896,15]
[426509077,1782493839000,-500.0,0.00037997,120]
[426509067,1782493839000,-500.0,0.00037997,120]
[426509075,1782493839000,-500.0,0.00037997,120]
[426509065,1782493839000,-500.0,0.00037997,120]
[426509058,1782493839000,-541.68328008,0.00037897,120]
[426509062,1782493839000,-165.66,0.00037997,2]
[426509060,1782493839000,-500.0,0.00037997,2]
[426509056,1782493839000,-541.68328008,0.00037897,120]
[426509054,1782493839000,-541.68328008,0.00037897,120]
[426509052,1782493839000,-541.68328008,0.00037897,120]
[426509064,1782493839000,-500.0,0.00037997,120]
[426509069,1782493839000,-500.0,0.00037997,120]
[426509081,1782493839000,-500.0,0.00037997,120]
[426509071,1782493839000,-500.0,0.00037997,120]
[426509079,1782493839000,-500.0,0.00037997,120]
[426509083,1782493839000,-31002.71163039,0.00037998,2]
[426509085,1782493839000,-162.846699,0.00037998,7]
[426509087,1782493839000,-151.0,0.00037998,7]
[426509088,1782493839000,-151.0,0.00037998,7]
[426509090,1782493839000,-286.368176,0.00037998,7]
[426509092,1782493839000,-151.0,0.00037998,7]
[426509100,1782493839000,-151.0,0.00037998,7]
[426509096,1782493839000,-151.0,0.00037998,7]
[426509094,1782493839000,-151.0,0.00037998,7]
[426509050,1782493839000,-541.68328008,0.00037897,120]
[426509073,1782493839000,-500.0,0.00037997,120]
[426509042,1782493839000,-541.68328008,0.00037897,120]
[426509025,1782493839000,-1172.40937259,0.00037896,15]
[426509048,1782493839000,-541.68328008,0.00037897,120]
[426509098,1782493839000,-151.0,0.00037998,7]
[426508990,1782493839000,-1172.40937259,0.00037896,15]
[426509001,1782493839000,-1172.40937259,0.00037896,15]
[426508996,1782493839000,-497.09176706,0.00037896,15]
[426508991,1782493839000,-1172.40937259,0.00037896,15]
[426508998,1782493839000,-1172.40937259,0.00037896,15]
[426508993,1782493839000,-675.31760553,0.00037896,15]
[426508999,1782493839000,-1172.40937259,0.00037896,15]
[426509003,1782493839000,-1172.40937259,0.00037896,15]
[426509006,1782493839000,-1172.40937259,0.00037896,15]
[426509018,1782493839000,-1172.40937259,0.00037896,15]
[426509022,1782493839000,-1172.40937259,0.00037896,15]
[426509046,1782493839000,-541.68328008,0.00037897,120]
[426509020,1782493839000,-1172.40937259,0.00037896,15]
[426509007,1782493839000,-1172.40937259,0.00037896,15]
[426509009,1782493839000,-1172.40937259,0.00037896,15]
[426509014,1782493839000,-1172.40937259,0.00037896,15]
[426509012,1782493839000,-1172.40937259,0.00037896,15]
[426509016,1782493839000,-1172.40937259,0.00037896,15]
[426509027,1782493839000,-1172.40937259,0.00037896,15]
[426509029,1782493839000,-1172.40937259,0.00037896,15]
[426509031,1782493839000,-1582.75265297,0.00037896,15]
[426509033,1782493839000,-1582.75265297,0.00037896,15]
[426509038,1782493839000,-108506.08228313,0.00037897,120]
[426509040,1782493839000,-541.68328008,0.00037897,120]
[426509044,1782493839000,-541.68328008,0.00037897,120]
[426509023,1782493839000,-1172.40937259,0.00037896,15]
[426509102,1782493839000,-151.0,0.00037998,7]
[426509035,1782493839000,-91336.12470965,0.00037897,120]
[426509106,1782493839000,-500.0,0.00037998,7]
[426509166,1782493839000,-432.6300247,0.00038401,30]
[426509176,1782493839000,-419.08552391,0.00038405,2]
[426509214,1782493839000,-297.895586,0.00039088,120]
[426509172,1782493839000,-377.35353998,0.00038405,2]
[426509180,1782493839000,-1666.6984629,0.00038435,2]
[426509174,1782493839000,-366.69983342,0.00038405,2]
[426509178,1782493839000,-471.53398966,0.00038405,2]
[426509182,1782493839000,-200.0,0.00038435,14]
[426509183,1782493839000,-185.5953521,0.00038496,3]
[426509186,1782493839000,-635.8059953,0.00038496,3]
[426509187,1782493839000,-207.95438298,0.00038496,3]
[426509193,1782493839000,-160.0,0.0003869,2]
[426509162,1782493839000,-152.33024916,0.00038312,120]
[426509191,1782493839000,-500.0,0.00038547,15]
[426509197,1782493839000,-300.97803173,0.00038817,2]
[426509199,1782493839000,-500.0,0.00038821,15]
[426509209,1782493839000,-297.895586,0.00039088,120]
[426509205,1782493839000,-421.240594,0.00039088,120]
[426509203,1782493839000,-421.240594,0.00039088,120]
[426509211,1782493839000,-421.240594,0.00039088,120]
[426509212,1782493839000,-297.895586,0.00039088,120]
[426509207,1782493839000,-421.240594,0.00039088,120]
[426509201,1782493839000,-300.0,0.00039003,56]
[426509213,1782493839000,-297.895586,0.00039088,120]
[426509215,1782493839000,-151.0,0.00039088,120]
[426509104,1782493839000,-500.0,0.00037998,7]
[426509195,1782493839000,-1005.0,0.00038739,14]
[426509164,1782493839000,-152.33024924,0.00038312,120]
[426509189,1782493839000,-151.0,0.000385,13]
[426509170,1782493839000,-209.64085554,0.00038405,2]
[426509158,1782493839000,-152.33024916,0.00038312,120]
[426509110,1782493839000,-500.0,0.00037998,7]
[426509122,1782493839000,-16711.33798255,0.00038,2]
[426509112,1782493839000,-151.0,0.00037998,7]
[426509114,1782493839000,-151.0,0.00037998,7]
[426509120,1782493839000,-500.0,0.00037999,15]
[426509118,1782493839000,-151.0,0.00037998,7]
[426509116,1782493839000,-151.0,0.00037998,7]
[426509124,1782493839000,-151.0,0.00038,7]
[426509128,1782493839000,-314.00441,0.00038,2]
[426509126,1782493839000,-314.00441,0.00038,2]
[426509132,1782493839000,-314.00441,0.00038,2]
[426509134,1782493839000,-314.00441,0.00038,2]
[426509145,1782493839000,-152.33024916,0.00038312,120]
[426509108,1782493839000,-500.0,0.00037998,7]
[426509156,1782493839000,-152.33024916,0.00038312,120]
[426509136,1782493839000,-151.0,0.00038,7]
[426509137,1782493839000,-151.0,0.00038,7]
[426509139,1782493839000,-160.14736535,0.00038,2]
[426509142,1782493839000,-167.0,0.00038,30]
[426509147,1782493839000,-152.33024916,0.00038312,120]
[426509149,1782493839000,-152.33024916,0.00038312,120]
[426509151,1782493839000,-152.33024916,0.00038312,120]
[426509152,1782493839000,-152.33024916,0.00038312,120]
[426509144,1782493839000,-500.0,0.00038273,15]
[426509154,1782493839000,-152.33024916,0.00038312,120]
[426509168,1782493839000,-1441.68222526,0.00038405,2]
[426509160,1782493839000,-152.33024916,0.00038312,120]
[426509260,1782493840000,-151.0,0.0003932,120]
[426509271,1782493840000,-1000.0,0.0003932,120]
[426509255,1782493840000,-151.0,0.0003932,120]
[426509259,1782493840000,-151.0,0.0003932,120]
[426509270,1782493840000,-1000.0,0.0003932,120]
[426509253,1782493840000,-175.337935,0.0003932,120]
[426509247,1782493840000,-500.0,0.00039311,120]
[426509257,1782493840000,-274.261422,0.0003932,120]
[426509252,1782493840000,-1000.0,0.00039319,120]
[426509256,1782493840000,-274.261422,0.0003932,120]
[426509254,1782493840000,-274.261422,0.0003932,120]
[426509262,1782493840000,-151.0,0.0003932,120]
[426509250,1782493840000,-151.0,0.00039311,120]
[426509261,1782493840000,-151.0,0.0003932,120]
[426509268,1782493840000,-1000.0,0.0003932,120]
[426509264,1782493840000,-284.79736,0.0003932,120]
[426509265,1782493840000,-1000.0,0.0003932,120]
[426509263,1782493840000,-151.0,0.0003932,120]
[426509266,1782493840000,-1000.0,0.0003932,120]
[426509269,1782493840000,-1000.0,0.0003932,120]
[426509272,1782493840000,-1000.0,0.0003932,120]
[426509274,1782493840000,-1000.0,0.0003932,120]
[426509275,1782493840000,-1000.0,0.0003932,120]
[426509283,1782493840000,-207.110183,0.00039321,120]
[426509273,1782493840000,-1000.0,0.0003932,120]
[426509281,1782493840000,-151.0,0.00039321,120]
[426509277,1782493840000,-267.99231379,0.0003932,120]
[426509267,1782493840000,-1000.0,0.0003932,120]
[426509251,1782493840000,-151.0,0.00039311,120]
[426509217,1782493840000,-314.00441,0.00039088,2]
[426509248,1782493840000,-500.0,0.00039311,120]
[426509291,1782493840000,-270.265093,0.00039321,120]
[426509216,1782493840000,-314.00441,0.00039088,2]
[426509228,1782493840000,-151.0,0.00039096,120]
[426509227,1782493840000,-1000.0,0.00039096,120]
[426509219,1782493840000,-314.00441,0.00039088,2]
[426509218,1782493840000,-314.00441,0.00039088,2]
[426509220,1782493840000,-151.0,0.00039088,120]
[426509222,1782493840000,-314.44941317,0.00039095,15]
[426509221,1782493840000,-208.0,0.00039088,120]
[426509225,1782493840000,-1000.0,0.00039096,120]
[426509226,1782493840000,-1000.0,0.00039096,120]
[426509224,1782493840000,-1000.0,0.00039096,120]